Body Name,Service Code,Expenditure Category,Payment Date,Transaction Number,Supplier,Net Amount
Barrow Borough Council,Off street car parking,Building cleaning,06-Jan-2022,200053722,Growing Concerns,564.87
Barrow Borough Council,Work in default,WID works,06-Jan-2022,200053724,Pickerings Scaffolding Ltd,"9,800.00"
Barrow Borough Council,Barrow town hall,Water,20-Jan-2022,200053918,Water Plus Ltd,"1,256.43"
Barrow Borough Council,Capitalised Planned Maintenance,Doors and windows,06-Jan-2022,200053678,Richmond Joiners & Builders Ltd,"15,160.64"
Barrow Borough Council,Information technology,Data Line Rental,06-Jan-2022,200053665,Vodafone Ltd,783.00
Barrow Borough Council,Cost of collection,Business rates collection,20-Jan-2022,200053876,Liberata Uk Ltd,"2,728.66"
Barrow Borough Council,Town Hall Stewards,Maintenance costs,06-Jan-2022,200053709,Lex Autolease Ltd,618.12
Barrow Borough Council,Current assets - stocks,Postage stock,20-Jan-2022,200053882,Pitney Bowes Ltd,"4,048.27"
Barrow Borough Council,Tenant demand maintenance - HRA,Gas works,13-Jan-2022,200053796,Sure Maintenance,"15,074.50"
Barrow Borough Council,Off street car parking,Professional fees,06-Jan-2022,200053674,PARK NOW Ltd,771.75
Barrow Borough Council,Tenant demand maintenance - HRA,Routine Maintenance,13-Jan-2022,200053818,Progression Solicitors,950.00
Barrow Borough Council,Sports development and community recreation,Buildings repairs and maintenance,13-Jan-2022,200053744,Integral UK Ltd,667.09
Barrow Borough Council,Cyclical maintenance - HRA,Electrical testing,13-Jan-2022,200053760,Keith Wilson Elec Con Ltd,"3,127.95"
Barrow Borough Council,Voids maintenance - HRA,Void repairs,13-Jan-2022,200053795,Hughes Brothers,"18,070.71"
Barrow Borough Council,Crematorium,Maintenance contracts - venue,20-Jan-2022,200053887,PJ Combustions Solutions Ltd,"2,456.00"
Barrow Borough Council,HRA administration,Management training,13-Jan-2022,200053809,David Ganz Associates Ltd,"2,250.00"
Barrow Borough Council,Housing repairs control account,Housing repairs invoices,06-Jan-2022,200053737,Howdens Joinery Ltd,"1,092.33"
Barrow Borough Council,Information technology,Licences,13-Jan-2022,200053826,Vodafone Ltd,"6,496.21"
Barrow Borough Council,Forum 28,Building cleaning,06-Jan-2022,200053712,Elior UK Ltd,"3,347.97"
Barrow Borough Council,Harding Rise Business Centre,Building cleaning,06-Jan-2022,200053707,Associated Cleaning Contractors,693.33
Barrow Borough Council,Local Council Tax Reduction Scheme (LCTRS),LCTRS Admin,20-Jan-2022,200053876,Liberata Uk Ltd,"9,095.54"
Barrow Borough Council,Dock museum,Clothing and uniforms,06-Jan-2022,200053687,Identity Co Ltd,599.08
Barrow Borough Council,Cost of collection,Council tax collection,20-Jan-2022,200053876,Liberata Uk Ltd,618.83
Barrow Borough Council,Cemeteries,Subscriptions,13-Jan-2022,200053772,Federation of Burial & Cremation Authorities,522.50
Barrow Borough Council,Tenant demand maintenance - HRA,Routine Maintenance,20-Jan-2022,200053895,Cumbria Roofing Ulverston,"4,491.00"
Barrow Borough Council,Voids maintenance - HRA,Void repairs,06-Jan-2022,200053703,Hughes Brothers,"15,896.32"
Barrow Borough Council,Barrow park,Grounds maintenance - schedule of works,13-Jan-2022,200053751,Continental Landscapes Ltd,"22,027.51"
Barrow Borough Council,Barrow park,Grounds maintenance - other works,13-Jan-2022,200053751,Continental Landscapes Ltd,"1,076.93"
Barrow Borough Council,Forum 28,Removal of refuse,06-Jan-2022,200053733,FCC Recycling (UK) Ltd,"1,312.08"
Barrow Borough Council,Forum 28,Building cleaning,06-Jan-2022,200053712,Elior UK Ltd,"3,347.97"
Barrow Borough Council,Tenant demand maintenance - HRA,Gas works,13-Jan-2022,200053796,Sure Maintenance,"5,617.95"
Barrow Borough Council,Forum 28,Publicity,06-Jan-2022,200053740,HSP Milners,"2,882.00"
Barrow Borough Council,Calling Planet Earth,Recoverable charges,06-Jan-2022,200053695,Ellis Live Ltd,-693.50
Barrow Borough Council,Information technology,Agency staff,13-Jan-2022,200053833,VennGroup Recruitment,"1,250.00"
Barrow Borough Council,Allotments,Water,06-Jan-2022,200053682,Water Plus Ltd,"1,290.91"
Barrow Borough Council,Estates management,Buildings repairs and maintenance,06-Jan-2022,200053711,Andrew Thompson,820.00
Barrow Borough Council,Cemeteries,Charges for services,06-Jan-2022,200053702,Dalton with Ireleth & Askam PCC,717.12
Barrow Borough Council,Information technology,Agency staff,20-Jan-2022,200053849,VennGroup Recruitment,"1,000.00"
Barrow Borough Council,Major works maintenance - HRA,Shop repairs,20-Jan-2022,200053900,Chris Bugler,"13,125.00"
Barrow Borough Council,Marina Village,Professional fees,20-Jan-2022,200053877,Capita Property & Infrastructure Ltd,"30,144.79"
Barrow Borough Council,Craven house,Water,06-Jan-2022,200053682,Water Plus Ltd,"1,337.20"
Barrow Borough Council,Information technology,Software maintenance,20-Jan-2022,200053851,Proact IT UK Ltd,"2,590.50"
Barrow Borough Council,Housing repairs control account,Housing repairs invoices,13-Jan-2022,200053791,B&Q,-621.26
Barrow Borough Council,Capitalised Planned Maintenance,Roofs,13-Jan-2022,200053785,DLP Services (Northern) Ltd,"5,767.54"
Barrow Borough Council,The markets,Buildings repairs and maintenance,13-Jan-2022,200053744,Integral UK Ltd,675.29
Barrow Borough Council,Low Carbon Barrow,Electric Vehicles and Charging,06-Jan-2022,200053705,Newsquest Media Group,515.88
Barrow Borough Council,Barrow BID,Solicitors fees,06-Jan-2022,200053729,Brown Barron Solicitors,"1,906.50"
Barrow Borough Council,Barrow town hall,Building cleaning,06-Jan-2022,200053707,Associated Cleaning Contractors,551.60
Barrow Borough Council,Voids maintenance - HRA,Void repairs,20-Jan-2022,200053880,Hughes Brothers,"11,288.48"
Barrow Borough Council,Estates management,Buildings repairs and maintenance,13-Jan-2022,200053744,Integral UK Ltd,"2,447.29"
Barrow Borough Council,Telephones Holding A/C,Telephone charges paid,06-Jan-2022,200053665,Vodafone Ltd,825.84
Barrow Borough Council,We'll Meet Again,Professional fees,13-Jan-2022,200053828,AGMP Ltd,"1,500.00"
Barrow Borough Council,Information technology,Licences,20-Jan-2022,200053851,Proact IT UK Ltd,"2,942.50"
Barrow Borough Council,Housing repairs control account,Housing repairs invoices,20-Jan-2022,200053863,Howdens Joinery Ltd,840.79
Barrow Borough Council,Housing repairs control account,Housing repairs invoices,13-Jan-2022,200053795,Hughes Brothers,"5,316.69"
Barrow Borough Council,Voids maintenance - HRA,Void repairs,13-Jan-2022,200053795,Hughes Brothers,"6,523.49"
Barrow Borough Council,Off street car parking,Professional fees,20-Jan-2022,200053911,PARK NOW Ltd,862.20
Barrow Borough Council,Food safety,Professional fees,20-Jan-2022,200053843,UK Health Security Agency,955.05
Barrow Borough Council,Forum 28,Removal of refuse,06-Jan-2022,200053733,FCC Recycling (UK) Ltd,-675.92
Barrow Borough Council,Information technology,Agency staff,13-Jan-2022,200053833,VennGroup Recruitment,"1,250.00"
Barrow Borough Council,Low Carbon Barrow,Installation of plant and equipment,13-Jan-2022,200053835,AMP EV,"29,356.22"
Barrow Borough Council,Human Resources,Other expenses,13-Jan-2022,200053839,Centre for Leadership Performance,"1,500.00"
Barrow Borough Council,Barrow town hall,Maintenance contracts - TSU,13-Jan-2022,200053769,FTS Fire & Secuirty Ltd,501.65
Barrow Borough Council,Human Resources,Software maintenance,06-Jan-2022,200053699,Frontier Software Plc,"5,134.57"
Barrow Borough Council,Corporate management,Professional fees,13-Jan-2022,200053812,32West Ltd,"7,165.52"
Barrow Borough Council,Information technology,Consultants' fees,06-Jan-2022,200053668,Proact IT UK Ltd,"1,592.50"
Barrow Borough Council,Housing repairs control account,Housing repairs invoices,06-Jan-2022,200053737,Howdens Joinery Ltd,911.97
Barrow Borough Council,Salthouse Road Depot,Electricity,06-Jan-2022,200053715,NPower,839.58
Barrow Borough Council,Dock Museum HLF Phase 2,Professional fees,13-Jan-2022,200053837,Howe Projects Ltd,"34,657.46"
Barrow Borough Council,Dock museum,Advertising,06-Jan-2022,200053723,Cumbria Tourism,699.00
Barrow Borough Council,HRA Estates,Cleaning - other,20-Jan-2022,200053888,Associated Cleaning Contractors,"3,968.65"
Barrow Borough Council,Crematorium,Gas,06-Jan-2022,200053672,Corona Energy,"2,762.83"
Barrow Borough Council,Waste collection,Refuse & Recycling Bins Boxes & Bags,13-Jan-2022,200053807,UK Container Maintenance Ltd,"4,130.00"
Barrow Borough Council,Information technology,Agency staff,13-Jan-2022,200053833,VennGroup Recruitment,"1,250.00"
Barrow Borough Council,Disabled Facilities Grant,Grants,20-Jan-2022,200053893,Lee Bowron Glazing Ltd,"4,780.00"
Barrow Borough Council,Disabled Facilities Grant,Grants,20-Jan-2022,200053874,Airey Property Developments & Adaptations,"9,891.00"
Barrow Borough Council,Dock museum,Charges for services,13-Jan-2022,200053756,FCC Recycling (UK) Ltd,"1,113.28"
Barrow Borough Council,Dock museum,Electricity,06-Jan-2022,200053715,NPower,"1,635.85"
Barrow Borough Council,RTB administration - HRA,Professional fees,20-Jan-2022,200053872,Lambert Smith Hampton,800.00
Barrow Borough Council,Capitalised Planned Maintenance,Doors and windows,13-Jan-2022,200053814,Richmond Joiners & Builders Ltd,"6,066.91"
Barrow Borough Council,The park leisure centre,Printing and stationery,20-Jan-2022,200053850,All Right Now Ltd,912.00
Barrow Borough Council,Tenant demand maintenance - HRA,Consultancy fees,20-Jan-2022,200053883,Procure Plus Ltd,"8,376.44"
Barrow Borough Council,Development control,Agency staff,20-Jan-2022,200053908,G2 Recruitment Solutions,"1,526.25"
Barrow Borough Council,Parks and open spaces,Grounds maintenance - schedule of works,13-Jan-2022,200053751,Continental Landscapes Ltd,"32,493.29"
Barrow Borough Council,HRA Estates,Tenants content insurance,13-Jan-2022,200053817,Thistle Insurance Services Ltd,543.96
Barrow Borough Council,Dock Museum HLF Phase 2,Professional fees,06-Jan-2022,200053735,Optech Fibres,725.00
Barrow Borough Council,Finance Department,Software maintenance,06-Jan-2022,200053699,Frontier Software Plc,"5,134.57"
Barrow Borough Council,Homelessness,Solicitors fees,20-Jan-2022,200053924,Brown Barron Solicitors,"1,030.75"
Barrow Borough Council,Harding Rise Business Centre,Buildings repairs and maintenance,13-Jan-2022,200053786,GEZE UK Ltd,844.97
Barrow Borough Council,Capitalised Planned Maintenance,Doors and windows,13-Jan-2022,200053785,DLP Services (Northern) Ltd,"7,848.10"
Barrow Borough Council,Development control,Agency staff,13-Jan-2022,200053816,G2 Recruitment Solutions,"1,526.25"
Barrow Borough Council,Local land charges,Land search charge,13-Jan-2022,200053803,Cumbria County Council,"21,798.00"
Barrow Borough Council,Technical services,Consultants' fees,13-Jan-2022,200053758,Bob Pedley Safety Services,"2,516.00"
Barrow Borough Council,Kennels,Electricity,06-Jan-2022,200053715,NPower,514.34
Barrow Borough Council,Finance Department,Agency staff,13-Jan-2022,200053829,Penna Plc,"8,540.00"
Barrow Borough Council,Barrow Town Deal,Consultants' fees,06-Jan-2022,200053691,Cumbria County Council,"19,118.25"
Barrow Borough Council,General grants,Other grants,20-Jan-2022,200053915,Cumbria CVS,"5,000.00"
Barrow Borough Council,Capitalised Planned Maintenance,Roofs,13-Jan-2022,200053785,DLP Services (Northern) Ltd,"9,813.13"
Barrow Borough Council,Housing repairs control account,Housing repairs invoices,13-Jan-2022,200053795,Hughes Brothers,"21,295.84"
Barrow Borough Council,Homelessness,Homeless support funding,13-Jan-2022,200053799,Redacted Information,"1,050.00"
Barrow Borough Council,Information technology,Agency staff,13-Jan-2022,200053833,VennGroup Recruitment,"1,250.00"
Barrow Borough Council,Homelessness,Homeless support funding,20-Jan-2022,200053846,Cumbria Community Homes,"29,227.42"
Barrow Borough Council,Capitalised Planned Maintenance,Rewires,13-Jan-2022,200053797,Rexel UK Ltd,532.33
Barrow Borough Council,Major works maintenance - HRA,Shop repairs,20-Jan-2022,200053906,Horrocks (NorthWest) Ltd,"2,122.50"
Barrow Borough Council,Information technology,Agency staff,20-Jan-2022,200053849,VennGroup Recruitment,"1,000.00"
Barrow Borough Council,Sports development and community recreation,Grass pitches,13-Jan-2022,200053751,Continental Landscapes Ltd,703.38
Barrow Borough Council,Information technology,Computer hardware purchase,20-Jan-2022,200053851,Proact IT UK Ltd,"17,241.56"
Barrow Borough Council,Estates management,Buildings repairs and maintenance,13-Jan-2022,200053761,Bill Caulfield Electrical,673.78
Barrow Borough Council,Information technology,Agency staff,13-Jan-2022,200053829,Penna Plc,"6,900.00"
Barrow Borough Council,Information technology,Agency staff,13-Jan-2022,200053833,VennGroup Recruitment,"1,250.00"
Barrow Borough Council,Forum 28,Buildings repairs and maintenance,13-Jan-2022,200053744,Integral UK Ltd,"6,526.35"
Barrow Borough Council,Forum 28,Electricity,06-Jan-2022,200053715,NPower,"4,657.50"
Barrow Borough Council,The park leisure centre,Printing and stationery,13-Jan-2022,200053840,Media Print and Design,"2,652.00"
Barrow Borough Council,Corporate management,External Audit fees,06-Jan-2022,200053684,Grant Thornton UK LLP,"8,472.40"
Barrow Borough Council,Homelessness,Preventing Homelessness - support victims of domestic abuse,13-Jan-2022,200053801,Womens Community Matters,"4,642.75"
Barrow Borough Council,Playground,Parks & Playgrounds Inspections & maintenance - contract,13-Jan-2022,200053802,Playsafety Ltd,"2,310.00"
Barrow Borough Council,Craven house,Building cleaning,06-Jan-2022,200053707,Associated Cleaning Contractors,595.26
Barrow Borough Council,Registration of electors,Software maintenance,06-Jan-2022,200053693,Democracy Counts Ltd,"6,114.20"
Barrow Borough Council,Corporate management,Licences,06-Jan-2022,200053714,SoftCat Ltd,507.35
Barrow Borough Council,Homelessness,Preventing Homelessness - support victims of domestic abuse,13-Jan-2022,200053801,Womens Community Matters,"8,125.00"
Barrow Borough Council,Barrow town hall,Building cleaning,06-Jan-2022,200053707,Associated Cleaning Contractors,"4,443.98"
Barrow Borough Council,Current assets - stocks,Postage stock,06-Jan-2022,200053704,Pitney Bowes Ltd,"2,034.27"
Barrow Borough Council,Heritage Action Zone,Consultants' fees,13-Jan-2022,200053824,Xanthe Quayle Landscape Architects Ltd,"4,125.00"
Barrow Borough Council,Housing repairs control account,Housing repairs invoices,20-Jan-2022,200053863,Howdens Joinery Ltd,982.12
Barrow Borough Council,Housing repairs control account,Housing repairs invoices,06-Jan-2022,200053706,Dolphin Stairlifts Cumbria,"1,995.00"
Barrow Borough Council,The park leisure centre,Water,13-Jan-2022,200053811,Water Plus Ltd,"1,041.04"
Barrow Borough Council,Tenant demand maintenance - HRA,Disrepair,13-Jan-2022,200053818,Progression Solicitors,585.00
Barrow Borough Council,Information technology,Agency staff,13-Jan-2022,200053833,VennGroup Recruitment,"1,250.00"
Barrow Borough Council,Forum 28,Publicity,13-Jan-2022,200053746,HSP Milners,"3,545.00"
Barrow Borough Council,Coast protection,CAPITA dbs fees,06-Jan-2022,200053698,Capita Property & Infrastructure Ltd,"10,620.00"
Barrow Borough Council,HRA administration,Management training,20-Jan-2022,200053866,David Ganz Associates Ltd,"1,125.00"
Barrow Borough Council,Public conveniences,Building cleaning,06-Jan-2022,200053722,Growing Concerns,"3,531.17"
Barrow Borough Council,Cemeteries,Grounds maintenance - other works,13-Jan-2022,200053751,Continental Landscapes Ltd,"1,535.66"
Barrow Borough Council,Local Council Tax Reduction Scheme (LCTRS),LCTRS Admin,20-Jan-2022,200053876,Liberata Uk Ltd,618.83
Barrow Borough Council,Salthouse Road Depot,Buildings repairs and maintenance,20-Jan-2022,200053925,Bill Caulfield Electrical,797.15
Barrow Borough Council,Harding Rise Business Centre,Electricity,06-Jan-2022,200053715,NPower,"1,072.38"
Barrow Borough Council,Barrow town hall,Electricity,06-Jan-2022,200053715,NPower,"2,233.04"
Barrow Borough Council,Tenant demand maintenance - HRA,Central overheads,13-Jan-2022,200053795,Hughes Brothers,"28,550.68"
Barrow Borough Council,Tenant demand maintenance - HRA,Disrepair,13-Jan-2022,200053818,Progression Solicitors,990.00
Barrow Borough Council,HRA Estates,Building cleaning,06-Jan-2022,200053707,Associated Cleaning Contractors,733.17
Barrow Borough Council,Information technology,Consultants' fees,20-Jan-2022,200053851,Proact IT UK Ltd,"4,106.25"
Barrow Borough Council,Cemeteries,Grounds maintenance - schedule of works,13-Jan-2022,200053751,Continental Landscapes Ltd,"11,206.40"
Barrow Borough Council,Housing Benefits Admin,Benefits private tenants,20-Jan-2022,200053876,Liberata Uk Ltd,"7,522.64"
Barrow Borough Council,Barrow town hall,Gas,06-Jan-2022,200053672,Corona Energy,"2,118.93"
Barrow Borough Council,Development control,Agency staff,13-Jan-2022,200053816,G2 Recruitment Solutions,"1,237.50"
Barrow Borough Council,Development control,Agency staff,13-Jan-2022,200053816,G2 Recruitment Solutions,"1,526.25"
Barrow Borough Council,Barrow town hall,Buildings repairs and maintenance,13-Jan-2022,200053744,Integral UK Ltd,"1,135.83"
Barrow Borough Council,Housing repairs control account,Housing repairs invoices,13-Jan-2022,200053767,Wilko Retail Ltd,"1,170.00"
Barrow Borough Council,Barrow park,Water,06-Jan-2022,200053682,Water Plus Ltd,606.02
Barrow Borough Council,Development control,Solicitors fees,20-Jan-2022,200053854,Mr Wilson Horne,787.50
Barrow Borough Council,Crematorium,Electricity,06-Jan-2022,200053715,NPower,957.44
Barrow Borough Council,Crematorium,Subscriptions,13-Jan-2022,200053772,Federation of Burial & Cremation Authorities,522.50
Barrow Borough Council,Barrow town hall,Buildings repairs and maintenance,13-Jan-2022,200053744,Integral UK Ltd,"-8,122.49"
Barrow Borough Council,Housing repairs control account,Housing repairs invoices,13-Jan-2022,200053767,Wilko Retail Ltd,-984.65
Barrow Borough Council,Capitalised Planned Maintenance,Rewires,13-Jan-2022,200053760,Keith Wilson Elec Con Ltd,"1,895.50"
Barrow Borough Council,Dock museum,Building cleaning,13-Jan-2022,200053784,Elior UK Ltd,"1,801.43"
Barrow Borough Council,Crematorium,Maintenance contracts - venue,20-Jan-2022,200053887,PJ Combustions Solutions Ltd,"7,372.00"
Barrow Borough Council,Forum 28,Gas,06-Jan-2022,200053672,Corona Energy,"2,407.98"
Barrow Borough Council,Dock museum,Gas,06-Jan-2022,200053672,Corona Energy,"1,438.22"
Barrow Borough Council,Marina Village,Specialised work,20-Jan-2022,200053877,Capita Property & Infrastructure Ltd,"141,463.78"
Barrow Borough Council,Barrow town hall,Water,06-Jan-2022,200053682,Water Plus Ltd,"2,483.11"
Barrow Borough Council,Information technology,Agency staff,13-Jan-2022,200053833,VennGroup Recruitment,"1,250.00"
Barrow Borough Council,Planning Policy,Agency staff,13-Jan-2022,200053810,The Oyster Partnership Ltd,"1,200.00"
Barrow Borough Council,Craven house,Electricity,06-Jan-2022,200053715,NPower,"7,462.53"
Barrow Borough Council,Heritage Action Zone,Professional fees,20-Jan-2022,200053873,John Coward Architects Ltd,"1,025.00"
Barrow Borough Council,Voids maintenance - HRA,Void repairs,06-Jan-2022,200053703,Hughes Brothers,"8,877.45"
Barrow Borough Council,Parks and open spaces,Grounds maintenance - other works,13-Jan-2022,200053751,Continental Landscapes Ltd,557.46
Barrow Borough Council,Cost of collection,Council tax collection,20-Jan-2022,200053876,Liberata Uk Ltd,"9,095.54"
Barrow Borough Council,Telephones Holding A/C,Telephone charges paid,13-Jan-2022,200053841,Vodafone Ltd,675.63
Barrow Borough Council,Planning Policy,Agency staff,13-Jan-2022,200053810,The Oyster Partnership Ltd,"1,200.00"
Barrow Borough Council,Housing Benefits Admin,Benefits council tenants,20-Jan-2022,200053876,Liberata Uk Ltd,"2,660.94"
Barrow Borough Council,Footpath Lighting,Electricity,13-Jan-2022,200053783,NPower,"2,066.28"
Barrow Borough Council,Voids maintenance - HRA,Void repairs,06-Jan-2022,200053703,Hughes Brothers,"4,215.84"
Barrow Borough Council,Public health inspection,Professional fees,06-Jan-2022,200053710,Little & Caine Ltd,"2,069.07"
Barrow Borough Council,Calling Planet Earth,Professional fees,06-Jan-2022,200053695,Ellis Live Ltd,"9,631.93"
Barrow Borough Council,Information technology,Agency staff,13-Jan-2022,200053833,VennGroup Recruitment,"1,250.00"
Barrow Borough Council,The park leisure centre,Consultants' fees,06-Jan-2022,200053683,APSE,"3,987.90"
Barrow Borough Council,Barrow BID,Other bodies expenditure,06-Jan-2022,200053697,Barrow BID Company Ltd,"11,008.06"
Barrow Borough Council,Waste collection,Refuse & Recycling Bins Boxes & Bags,13-Jan-2022,200053807,UK Container Maintenance Ltd,"4,250.00"
Barrow Borough Council,Licensing,Advertising,13-Jan-2022,200053812,32West Ltd,535.94
Barrow Borough Council,Homelessness,Professional fees,20-Jan-2022,200053855,Securitas Security Services (UK) Ltd,634.05
Barrow Borough Council,M - Abba Mania 03.12.21,Professional fees,06-Jan-2022,200053713,Handshake Ltd,"4,528.80"
Barrow Borough Council,Major works maintenance - HRA,Repointing Walney,13-Jan-2022,200053785,DLP Services (Northern) Ltd,"9,813.13"
Barrow Borough Council,Dock museum,Buildings repairs and maintenance,13-Jan-2022,200053744,Integral UK Ltd,"5,369.45"
Barrow Borough Council,Insurance holding account,Insurance premiums,06-Jan-2022,200053720,Zurich Insurance Group Ltd,500.00
Barrow Borough Council,Forum 28,Water,06-Jan-2022,200053682,Water Plus Ltd,"1,105.84"
Barrow Borough Council,Development control,Agency staff,13-Jan-2022,200053816,G2 Recruitment Solutions,"3,052.50"
Barrow Borough Council,The park leisure centre,Professional fees,06-Jan-2022,200053666,Cornerstone Design & Marketing,"3,800.00"
Barrow Borough Council,Housing repairs control account,Housing repairs invoices,20-Jan-2022,200053863,Howdens Joinery Ltd,"1,382.88"
Barrow Borough Council,Dock museum,Water,20-Jan-2022,200053918,Water Plus Ltd,567.80
Barrow Borough Council,Crematorium,Memorials,06-Jan-2022,200053739,The Hilton Cabinet Company Ltd,844.01
Barrow Borough Council,Crematorium,Grounds maintenance - other works,13-Jan-2022,200053751,Continental Landscapes Ltd,"1,335.23"
Barrow Borough Council,The park leisure centre,Conferences and seminars,06-Jan-2022,200053742,Debit Finance Collections Plc,"2,897.12"
Barrow Borough Council,Information technology,Computer hardware maintenance,13-Jan-2022,200053754,Optech Fibres,"1,450.00"
Barrow Borough Council,Forum catering,Catering contract - Forum,06-Jan-2022,200053712,Elior UK Ltd,"1,233.85"
Barrow Borough Council,The park leisure centre,Professional fees,13-Jan-2022,200053838,Cornerstone Design & Marketing,"3,800.00"
Barrow Borough Council,Waste collection,Abandoned cars,13-Jan-2022,200053794,Furness Cars & Commercials Ltd,825.00
Barrow Borough Council,Housing repairs control account,Housing repairs invoices,20-Jan-2022,200053914,UK Environmental & Asbestos Solutions Ltd,800.00
Barrow Borough Council,Off street car parking,Maintenance costs,06-Jan-2022,200053709,Lex Autolease Ltd,927.17
Barrow Borough Council,Democratic representation and management,Licences,06-Jan-2022,200053714,SoftCat Ltd,675.32
Barrow Borough Council,Licensing,Solicitors fees,20-Jan-2022,200053852,Tim Leader,"2,500.00"
Barrow Borough Council,Information technology,Data Line Rental,13-Jan-2022,200053841,Vodafone Ltd,783.00
Barrow Borough Council,Disabled Facilities Grant,Grants,20-Jan-2022,200053902,Handicare Accessibility Ltd,"1,895.00"
Barrow Borough Council,Telephones Holding A/C,Telephone charges paid,20-Jan-2022,200053892,EE Ltd,"1,877.76"
Barrow Borough Council,HRA share of CDC/NDC,External Audit fees,06-Jan-2022,200053684,Grant Thornton UK LLP,"2,118.10"
Barrow Borough Council,Capital - Marina Village,Incidental Costs,04-Jan-2022,DD040122,Brown Barron Solicitors,"10,000.00"
Barrow Borough Council,The Park Leisure Centre,Clothing and uniforms,07-Jan-2022,DD070122,Innovations 4 Leisure Ltd,"8,916.07"
Barrow Borough Council,Revenue & Benefits,Postage Costs,12-Jan-2022,DD120122,Royal Mail,"1,246.56"
Barrow Borough Council,DBS - Licensing,Professional fees,17-Jan-2022,DD170122,DBS,720.00
Barrow Borough Council,Technical Services,Telephone charges ,17-Jan-2022,DD170122,BT,"4,506.72"
Barrow Borough Council,Corporate Costs,Bank Charges,19-Jan-2022,DD190122,HSBC,"1,403.50"
Barrow Borough Council,CIS - Inland Revenue Account,CIS Tax,21-Jan-2022,DD210122,HMRC,"2,299.04"
Barrow Borough Council,Corporate Costs,Professional fees,26-Jan-2022,DD260122,Allpay,"3,408.24"
Barrow Borough Council,Corporate Costs,Professional fees,26-Jan-2022,DD260122,Capita Business Services Ltd,"5,166.46"
Barrow Borough Council,The Park Leisure Centre,Leisure Contract,31-Jan-2022,DD310122,Barrow Forward Ltd,"90,212.80"
